bitfinex-derivatives/quotes_BTCF0:USTF0_20241009
["timestamp","ask_amount","ask_price","bid_price","bid_amount"]
[1728470187401,0.49078107,62128.0,62127.0,0.1480087]
[1728470187792,0.49078107,62128.0,62127.0,0.21247509]
[1728470187988,0.49078107,62128.0,62127.0,0.27694147]
[1728470189202,0.63744604,62128.0,62127.0,0.27694147]
[1728470189809,0.58800454,62128.0,62127.0,0.21247508]
[1728470193202,0.53022995,62128.0,62127.0,0.21247508]
[1728470193703,0.53022995,62128.0,62127.0,0.33247508]
[1728470196296,0.70664057,62128.0,62127.0,0.33247508]
[1728470196700,0.53022995,62128.0,62127.0,0.33247508]
[1728470197103,0.48078647,62128.0,62127.0,0.38082322]
[1728470197308,0.44134,62128.0,62127.0,0.33247508]
[1728470199812,0.44134,62128.0,62127.0,0.2680087]
[1728470201499,0.08054,62128.0,62127.0,0.2680087]
[1728470204114,0.16942997,62128.0,62127.0,0.2680087]
[1728470204509,0.2272043,62128.0,62127.0,0.2680087]
[1728470205115,0.2272043,62128.0,62127.0,0.1874697]
[1728470208416,0.16942997,62128.0,62127.0,0.1874697]
[1728470209515,0.08054,62128.0,62127.0,0.1874697]
[1728470209711,0.40360828,62128.0,62127.0,0.1874697]
[1728470210013,0.40360828,62128.0,62127.0,0.123]
[1728470210917,0.76440828,62128.0,62127.0,0.123]
[1728470211106,0.40360828,62128.0,62127.0,0.123]
[1728470211513,0.76440828,62128.0,62127.0,0.123]
[1728470211714,0.40360828,62128.0,62127.0,0.123]
[1728470212111,0.30638637,62128.0,62127.0,0.003]
[1728470212311,0.08054,62128.0,62127.0,0.003]
[1728470215017,0.44134,62128.0,62127.0,0.003]
[1728470215420,0.44134,62128.0,62127.0,0.05134992]
[1728470216218,0.44134,62128.0,62127.0,0.003]
[1728470219432,0.08054,62128.0,62127.0,0.003]
[1728470219633,0.44134,62128.0,62127.0,0.003]
[1728470222438,0.44134,62128.0,62127.0,0.05135572]
[1728470223937,0.08054,62128.0,62127.0,0.05135572]
[1728470224139,0.44134,62128.0,62127.0,0.05135572]
[1728470227242,0.58800596,62128.0,62127.0,0.003]
[1728470229442,0.58800596,62128.0,62127.0,0.08354]
[1728470233843,0.26536067,62128.0,62127.0,0.08354]
[1728470234042,0.23327929,62128.0,62127.0,0.08354]
[1728470234242,0.080537,62130.0,62129.0,0.080538]
[1728470234444,0.080537,62130.0,62129.0,0.62578429]
[1728470235450,0.081537,62130.0,62129.0,0.62578429]
[1728470236044,0.081537,62130.0,62129.0,0.561338]
[1728470236544,0.081537,62130.0,62129.0,0.604138]
[1728470239658,0.001,62130.0,62129.0,0.604138]
[1728470240046,0.001,62130.0,62129.0,0.66858429]
[1728470242357,0.001,62130.0,62129.0,0.604138]
[1728470249462,0.2403115,62130.0,62129.0,0.604138]
[1728470249658,0.33918606,62130.0,62129.0,0.604138]
[1728470249864,0.37862759,62130.0,62129.0,0.604138]
[1728470250762,0.13931609,62130.0,62129.0,0.604138]
[1728470251958,0.29974453,62130.0,62129.0,0.484138]
[1728470252259,0.21985209,62130.0,62129.0,0.441338]
[1728470252466,0.92985209,62130.0,62129.0,0.441338]
[1728470252966,0.92985209,62130.0,62129.0,0.080538]
[1728470252967,0.97928942,62130.0,62129.0,0.080538]
[1728470255158,1.0370586,62130.0,62129.0,0.080538]
[1728470256256,0.97928942,62130.0,62129.0,0.080538]
[1728470257053,0.080539,62128.0,62127.0,0.56226]
[1728470257253,0.12997955,62128.0,62127.0,0.56134]
[1728470257470,0.080539,62128.0,62127.0,0.56134]
[1728470258258,0.080539,62128.0,62127.0,0.56334]
[1728470259471,0.080539,62128.0,62127.0,0.56434]
[1728470260468,0.080539,62128.0,62127.0,0.64482322]
[1728470261365,0.080539,62128.0,62127.0,0.76757]
[1728470262467,0.080539,62128.0,62127.0,0.76761716]
[1728470262665,0.080539,62128.0,62127.0,0.64761716]
[1728470263372,0.080539,62128.0,62127.0,0.56708678]
[1728470264369,0.11998289,62128.0,62127.0,0.44434]
[1728470265772,0.11998289,62128.0,62127.0,0.08354]
[1728470269282,0.77230361,62128.0,62127.0,0.003]
[1728470269580,1.13310361,62128.0,62127.0,0.003]
[1728470269763,1.29351577,62128.0,62127.0,0.003]
[1728470269965,1.13310361,62128.0,62127.0,0.003]
[1728470270371,1.29345014,62128.0,62127.0,0.003]
[1728470270673,1.13310361,62128.0,62127.0,0.003]
[1728470270873,0.65022361,62128.0,62127.0,0.003]
[1728470271266,0.28942361,62128.0,62127.0,0.003]
[1728470271468,0.65022361,62128.0,62127.0,0.003]
[1728470272480,0.561339,62128.0,62127.0,0.06743894]
[1728470276481,0.561339,62128.0,62127.0,0.003]
[1728470279477,0.65023394,62128.0,62127.0,0.003]
[1728470280085,0.79445304,62128.0,62127.0,0.003]
[1728470281683,0.65023394,62128.0,62127.0,0.003]
[1728470283488,0.28943394,62128.0,62127.0,0.003]
[1728470283787,0.65023394,62128.0,62127.0,0.003]
[1728470284781,0.74488727,62128.0,62127.0,0.003]
[1728470284975,0.60078769,62128.0,62127.0,0.003]
[1728470285586,0.65023395,62128.0,62127.0,0.003]
[1728470285797,0.080548,62121.0,62120.0,0.0037]
[1728470285979,0.080549,62120.0,62119.0,0.01606]
[1728470286179,0.11999769,62120.0,62119.0,0.01606]
[1728470287384,0.002,62121.0,62119.0,0.219373]
[1728470287583,0.002,62121.0,62120.0,0.28386126]
[1728470287784,0.002,62121.0,62120.0,0.20331259]
[1728470288491,0.080543,62125.0,62124.0,0.080544]
[1728470288691,0.080543,62125.0,62124.0,0.32330759]
[1728470289684,0.081543,62125.0,62124.0,0.32330759]
[1728470291387,0.081543,62125.0,62124.0,0.32329923]
[1728470294597,0.17043373,62125.0,62124.0,0.200544]
[1728470295384,0.17043373,62125.0,62119.0,0.01606]
[1728470295688,0.17043373,62125.0,62114.0,0.0476]
[1728470295689,0.200549,62120.0,62114.0,0.0476]
[1728470295886,0.200549,62120.0,62099.0,0.3608]
[1728470295887,0.080565,62108.0,62107.0,0.0074]
[1728470296088,0.080565,62108.0,62106.0,0.01606]
[1728470296089,0.080574,62102.0,62101.0,0.080574]
[1728470296295,0.080574,62101.0,62100.0,0.0476]
[1728470296498,0.12002082,62101.0,62100.0,0.0476]
[1728470296889,0.12002082,62101.0,62100.0,0.128175]
[1728470297291,0.12003357,62101.0,62100.0,0.0476]
[1728470298396,0.080575,62100.0,62099.0,0.3608]
[1728470298596,0.40351265,62100.0,62099.0,0.3608]
[1728470299097,0.16949606,62100.0,62099.0,0.3608]
[1728470299294,0.16949606,62100.0,62099.0,0.36076]
[1728470299495,0.2403787,62100.0,62099.0,0.36076]
[1728470299796,0.08892106,62100.0,62096.0,0.08058]
[1728470299995,0.24037915,62099.0,62098.0,0.3608]
[1728470300187,0.16949706,62099.0,62098.0,0.3608]
[1728470301302,0.31320814,62099.0,62098.0,0.3608]
[1728470301793,0.28949706,62099.0,62098.0,0.3608]
[1728470302398,0.12003557,62099.0,62098.0,0.3608]
[1728470302601,0.081576,62099.0,62098.0,0.3618]
[1728470302795,0.082576,62099.0,62098.0,0.3628]
[1728470305138,0.002,62099.0,62098.0,0.4828]
[1728470305402,0.002,62099.0,62098.0,0.563378]
[1728470309598,0.002,62099.0,62098.0,0.62752752]
[1728470311306,0.002,62099.0,62098.0,0.563378]
[1728470311706,0.082576,62099.0,62098.0,0.3628]
[1728470312401,0.082576,62099.0,62098.0,0.002]
[1728470312603,0.082576,62099.0,62098.0,0.3628]
[1728470318408,0.082576,62099.0,62098.0,0.002]
[1728470318707,0.082576,62099.0,62098.0,0.3628]
[1728470323711,0.082576,62099.0,62098.0,0.002]
[1728470324604,0.002,62099.0,62098.0,0.202578]
[1728470326810,0.002,62099.0,62098.0,0.563378]
[1728470331208,0.082576,62099.0,62098.0,0.563378]
[1728470331808,0.082576,62099.0,62098.0,0.202578]
[1728470332009,0.082576,62099.0,62098.0,0.563378]
[1728470333118,0.082576,62099.0,62098.0,0.082578]
[1728470333517,0.202576,62099.0,62098.0,0.002]
[1728470334122,0.082576,62099.0,62098.0,0.002]
[1728470334518,0.082576,62099.0,62098.0,0.05035103]
[1728470334919,0.082576,62099.0,62098.0,0.002]
[1728470335622,0.082576,62099.0,62098.0,0.05035272]
[1728470336224,0.082576,62099.0,62098.0,0.002]
[1728470336719,0.002,62099.0,62098.0,0.13093072]
[1728470337124,0.002,62099.0,62098.0,0.082578]
[1728470339624,0.0414609,62099.0,62098.0,0.082578]
[1728470339829,0.002,62099.0,62098.0,0.082578]
[1728470340219,0.09092246,62099.0,62098.0,0.082578]
[1728470345627,0.14871791,62099.0,62098.0,0.082578]
[1728470346727,0.09092246,62099.0,62098.0,0.082578]
[1728470346924,0.10925701,62099.0,62098.0,0.082578]
[1728470347124,0.14871791,62099.0,62098.0,0.082578]
[1728470347723,0.002,62099.0,62098.0,0.129778]
[1728470354233,0.002,62099.0,62098.0,0.21036586]
[1728470354635,0.09092201,62099.0,62098.0,0.129778]
[1728470358434,0.0037,62106.0,62098.0,0.0492]
[1728470358636,0.0074,62109.0,62108.0,0.080565]
[1728470358936,0.045,62112.0,62110.0,0.080562]
[1728470359231,0.12556,62112.0,62110.0,0.080562]
[1728470359440,0.3645,62114.0,62110.0,0.080562]
[1728470359629,0.0037,62114.0,62113.0,0.080558]
[1728470359937,0.20822052,62116.0,62115.0,0.080556]
[1728470362137,0.21622052,62116.0,62115.0,0.080556]
[1728470362335,0.22322052,62116.0,62115.0,0.080556]
[1728470362834,0.22122052,62116.0,62115.0,0.080556]
[1728470364634,0.013,62116.0,62115.0,0.080556]
[1728470365334,0.013,62116.0,62115.0,0.10291884]
[1728470367239,0.013,62116.0,62115.0,0.46371884]
[1728470369143,0.133,62116.0,62115.0,0.441356]
[1728470369345,0.213554,62116.0,62115.0,0.3608]
[1728470369537,0.080557,62114.0,62113.0,0.0644814]
[1728470369737,0.080561,62111.0,62110.0,0.02278836]
[1728470369947,0.30779968,62111.0,62110.0,0.080562]
[1728470370151,0.34725384,62111.0,62110.0,0.080562]
[1728470371439,0.080562,62110.0,62109.0,0.10339025]
[1728470371637,0.22725484,62110.0,62109.0,0.080563]
[1728470373245,0.22825484,62110.0,62109.0,0.080563]
[1728470374441,0.22813484,62110.0,62109.0,0.080563]
[1728470378043,0.081442,62110.0,62109.0,0.1450444]
[1728470379355,0.081442,62110.0,62109.0,0.080563]
[1728470380948,0.081442,62110.0,62109.0,0.14487513]
[1728470382359,0.081442,62110.0,62109.0,0.080563]
[1728470385057,0.17035048,62110.0,62109.0,0.080563]
[1728470386456,0.08990848,62110.0,62107.0,0.37686]
[1728470386660,0.34463964,62108.0,62107.0,0.37686]
[1728470386865,0.28947348,62108.0,62107.0,0.37686]
[1728470387162,0.28947348,62108.0,62107.0,0.457426]
[1728470387955,0.44926692,62108.0,62107.0,0.460426]
[1728470389053,0.44926692,62108.0,62107.0,0.099626]
[1728470389252,0.28947348,62108.0,62107.0,0.099626]
[1728470389449,0.28947348,62108.0,62107.0,0.099546]
[1728470389863,0.28947348,62108.0,62107.0,0.01898]
[1728470390456,0.44926692,62108.0,62107.0,0.01898]
[1728470390762,0.28947348,62108.0,62107.0,0.01898]
[1728470390961,0.28947348,62108.0,62107.0,0.099546]
[1728470391262,0.16947348,62108.0,62107.0,0.099546]
[1728470393263,0.080565,62108.0,62107.0,0.099546]
[1728470394168,0.200562,62110.0,62109.0,0.080564]
[1728470394459,0.200562,62110.0,62109.0,0.12886093]
[1728470394963,0.200562,62110.0,62109.0,0.080564]
[1728470395176,0.080562,62110.0,62109.0,0.080564]
[1728470395656,0.081562,62110.0,62109.0,0.080564]
[1728470397261,0.001,62110.0,62109.0,0.080564]
[1728470397768,0.001,62110.0,62109.0,0.14493046]
[1728470398369,0.001,62110.0,62109.0,0.080564]
[1728470400071,0.001,62110.0,62109.0,0.1288982]
[1728470400760,0.0037,62115.0,62109.0,0.5058096]
[1728470400963,0.0037,62115.0,62114.0,0.12888929]
[1728470401159,0.445049,62121.0,62120.0,0.080549]
[1728470401366,0.0037,62127.0,62120.0,0.12]
[1728470401569,0.0037,62130.0,62126.0,0.561341]
[1728470401871,0.0037,62131.0,62126.0,0.561341]
[1728470401872,0.080535,62131.0,62126.0,0.561341]
[1728470402372,0.3645,62135.0,62126.0,0.200541]
[1728470402373,0.080534,62132.0,62126.0,0.200541]
[1728470402568,0.12,62131.0,62126.0,0.200541]
[1728470403965,0.12,62131.0,62126.0,0.205541]
[1728470404569,0.11984,62131.0,62126.0,0.083541]
[1728470404777,0.11984,62131.0,62126.0,0.205541]
[1728470405477,0.11984,62131.0,62126.0,0.125]
[1728470405667,0.11984,62131.0,62127.0,0.08054]
[1728470406180,0.11984,62131.0,62128.0,0.080539]
[1728470407473,0.3608,62134.0,62133.0,0.080532]
[1728470407666,0.3608,62134.0,62133.0,0.200532]
[1728470407861,0.3608,62134.0,62133.0,0.080532]
[1728470408171,0.50744767,62134.0,62133.0,0.080532]
[1728470412775,0.50744663,62134.0,62133.0,0.080532]
[1728470415277,0.3608,62134.0,62133.0,0.080532]
[1728470416683,0.200529,62136.0,62135.0,0.08053]
[1728470417980,0.202529,62136.0,62135.0,0.08053]
[1728470418184,0.204529,62136.0,62135.0,0.08053]
[1728470422288,1.2368,62136.0,62127.0,0.3608]
[1728470422593,0.200539,62128.0,62127.0,0.3608]
[1728470423185,0.28942313,62128.0,62127.0,0.3608]
[1728470423587,0.44903265,62128.0,62127.0,0.3608]
[1728470424179,0.29042313,62128.0,62127.0,0.3658]
[1728470424385,0.33732313,62128.0,62127.0,0.3658]
[1728470424586,0.38202313,62128.0,62127.0,0.3658]
[1728470426297,0.38202313,62128.0,62127.0,0.005]
[1728470426900,0.38202385,62128.0,62127.0,0.005]
[1728470428300,0.43979486,62128.0,62127.0,0.005]
[1728470429197,0.38202385,62128.0,62127.0,0.005]
[1728470430205,0.293139,62128.0,62127.0,0.005]
[1728470434701,0.293139,62128.0,62127.0,0.00492]
[1728470436608,0.293139,62128.0,62127.0,0.05321435]
[1728470438300,0.3820241,62128.0,62127.0,0.00492]
[1728470438511,0.43979526,62128.0,62127.0,0.00492]
[1728470438703,0.61584426,62128.0,62127.0,0.00492]
[1728470438905,0.43979526,62128.0,62127.0,0.00492]
[1728470439101,0.39389526,62128.0,62127.0,0.00492]
[1728470439703,0.34919526,62128.0,62127.0,0.00492]
[1728470441004,0.22919526,62128.0,62127.0,0.08546]
[1728470441203,0.14865628,62128.0,62127.0,0.08546]
[1728470441412,0.26705894,62128.0,62127.0,0.08546]
[1728470441804,0.0908851,62128.0,62127.0,0.08546]
[1728470442205,0.16217075,62128.0,62127.0,0.08546]
[1728470442600,0.25105585,62128.0,62127.0,0.08546]
[1728470443015,0.0908851,62128.0,62127.0,0.08546]
[1728470444712,0.16219754,62128.0,62127.0,0.08546]
[1728470444909,0.25108264,62128.0,62127.0,0.08546]
[1728470445209,0.16219754,62128.0,62127.0,0.08546]
[1728470445414,0.002,62128.0,62127.0,0.08546]
[1728470446607,0.002,62128.0,62127.0,0.1499056]
[1728470447619,0.002,62128.0,62127.0,0.08546]
[1728470449510,0.002,62128.0,62127.0,0.16604786]
[1728470449712,0.0037,62134.0,62133.0,0.080532]
[1728470449910,0.080528,62137.0,62135.0,0.080529]
[1728470450615,0.080528,62137.0,62136.0,0.04829197]
[1728470451713,0.004,62137.0,62136.0,0.200529]
[1728470452321,0.080526,62138.0,62137.0,0.080527]
[1728470453720,0.084526,62138.0,62137.0,0.080527]
[1728470453920,0.088526,62138.0,62137.0,0.080527]
[1728470454615,0.208526,62138.0,62134.0,0.089]
[1728470454919,0.08053,62135.0,62134.0,0.169531]
[1728470456625,0.08153,62135.0,62134.0,0.169531]
[1728470457114,0.08253,62135.0,62134.0,0.530331]
[1728470460322,0.17140034,62135.0,62134.0,0.530331]
[1728470460514,0.22916191,62135.0,62134.0,0.530331]
[1728470464624,0.22816191,62135.0,62134.0,0.534331]
[1728470464824,0.34816191,62135.0,62134.0,0.3648]
[1728470465025,0.28940034,62135.0,62134.0,0.3648]
[1728470465220,0.28940034,62135.0,62134.0,0.3678]
[1728470467628,0.52315472,62135.0,62134.0,0.3678]
[1728470468231,0.37651928,62135.0,62134.0,0.3678]
[1728470468433,0.20053,62135.0,62134.0,0.3678]
[1728470469826,0.22300863,62135.0,62134.0,0.3678]
[1728470470031,0.22300863,62135.0,62134.0,0.007]
[1728470470633,0.10300863,62135.0,62134.0,0.007]
[1728470470839,0.22300863,62135.0,62134.0,0.007]
[1728470475334,0.36965209,62135.0,62134.0,0.007]
[1728470478036,0.73045209,62135.0,62134.0,0.007]
[1728470478629,0.36965209,62135.0,62134.0,0.007]
[1728470478941,0.73045209,62135.0,62134.0,0.007]
[1728470482343,0.36965209,62135.0,62134.0,0.007]
[1728470482540,0.73045209,62135.0,62134.0,0.007]
[1728470482941,0.73045534,62135.0,62134.0,0.007]
[1728470483334,0.58380863,62135.0,62134.0,0.007]
[1728470486833,0.56133,62135.0,62134.0,0.007]
[1728470487840,0.44133,62135.0,62134.0,0.007]
[1728470488048,0.56133,62135.0,62134.0,0.007]
[1728470493248,0.56133,62135.0,62134.0,0.1358024]
[1728470494647,0.44133,62135.0,62134.0,0.1358024]
[1728470494959,0.44133,62135.0,62134.0,0.087531]
[1728470495257,0.080526,62140.0,62139.0,0.080522]
[1728470496549,0.080526,62140.0,62139.0,0.12883615]
[1728470497447,0.081526,62140.0,62139.0,0.12883615]
[1728470498348,0.081526,62140.0,62139.0,0.080522]
[1728470498349,0.12096367,62140.0,62139.0,0.080522]
[1728470498560,0.22815754,62140.0,62139.0,0.080522]
[1728470499558,0.25764349,62140.0,62139.0,0.080522]
[1728470499757,0.34651361,62140.0,62139.0,0.080522]
[1728470500053,0.17039612,62140.0,62139.0,0.080522]
[1728470501358,0.22815736,62140.0,62139.0,0.080522]
[1728470502045,0.25760958,62140.0,62139.0,0.080522]
[1728470502254,0.40424094,62140.0,62139.0,0.080522]
[1728470503454,0.08053,62137.0,62136.0,0.080528]
[1728470503656,0.11996767,62137.0,62136.0,0.080528]
[1728470503856,0.22716136,62137.0,62136.0,0.080528]
[1728470504558,0.22716136,62137.0,62136.0,0.086528]
[1728470504858,0.22716108,62137.0,62136.0,0.006]
[1728470505355,0.08053,62137.0,62136.0,0.006]
[1728470506049,0.20053,62137.0,62136.0,0.006]
[1728470506251,0.08053,62137.0,62136.0,0.006]
[1728470513460,0.11996898,62137.0,62136.0,0.006]
[1728470513862,0.22716641,62137.0,62136.0,0.006]
[1728470520472,0.08053,62137.0,62136.0,0.006]
[1728470523061,0.08053,62137.0,62136.0,0.086529]
[1728470524374,0.08053,62137.0,62136.0,0.15094786]
[1728470527575,0.08053,62137.0,62136.0,0.086529]
[1728470527576,0.16940307,62137.0,62136.0,0.086529]
[1728470527777,0.22716642,62137.0,62136.0,0.086529]
[1728470528274,0.22716506,62137.0,62136.0,0.086529]
[1728470528480,0.22716506,62137.0,62136.0,0.006]
[1728470533387,0.22716567,62137.0,62136.0,0.006]
[1728470535385,0.08053,62137.0,62136.0,0.006]
[1728470536888,0.12593,62137.0,62136.0,0.006]
[1728470538179,0.12593,62137.0,62136.0,0.07046021]
[1728470542289,0.14918022,62137.0,62136.0,0.07046021]
[1728470542593,0.14918022,62137.0,62136.0,0.006]
[1728470543290,0.12593,62137.0,62136.0,0.006]
[1728470544489,0.24593,62137.0,62136.0,0.006]
[1728470550491,0.39256551,62137.0,62136.0,0.006]
[1728470553495,0.30369299,62137.0,62136.0,0.006]
[1728470553691,0.3925684,62137.0,62136.0,0.006]
[1728470557686,0.24593,62137.0,62136.0,0.006]
[1728470561388,0.20053,62137.0,62136.0,0.006]
[1728470565804,0.3471703,62137.0,62136.0,0.006]
[1728470571399,0.28940543,62137.0,62136.0,0.006]
[1728470571705,0.44960987,62137.0,62136.0,0.006]
[1728470572501,0.32960987,62137.0,62136.0,0.006]
[1728470573003,0.08053,62137.0,62136.0,0.006]
[1728470573708,0.08053,62137.0,62136.0,0.07046021]
[1728470576901,0.3608,62139.0,62136.0,0.07046021]
[1728470577212,0.441325,62139.0,62138.0,0.080526]
[1728470578007,0.561325,62139.0,62138.0,0.080526]
[1728470579514,0.561325,62139.0,62138.0,0.081526]
[1728470580201,0.200525,62139.0,62138.0,0.081526]
[1728470580912,0.200525,62139.0,62138.0,0.082526]
[1728470587821,0.200525,62139.0,62138.0,0.002]
[1728470588009,0.34716073,62139.0,62138.0,0.002]
[1728470591609,0.22716073,62139.0,62138.0,0.082526]
[1728470592516,0.22716088,62139.0,62138.0,0.082526]
[1728470595008,0.080525,62139.0,62138.0,0.082526]
[1728470603022,0.11996362,62139.0,62138.0,0.082526]
[1728470603223,0.16939726,62139.0,62138.0,0.082526]
[1728470603419,0.22716008,62139.0,62138.0,0.082526]
[1728470603614,0.25675339,62139.0,62138.0,0.082526]
[1728470604126,0.40338847,62139.0,62138.0,0.082526]
[1728470604323,0.34562565,62139.0,62138.0,0.082526]
[1728470604515,0.16939726,62139.0,62138.0,0.082526]
[1728470606518,0.46562565,62139.0,62138.0,0.082526]
[1728470606720,0.52338847,62139.0,62138.0,0.082526]
[1728470608628,0.34716008,62139.0,62138.0,0.082526]
[1728470610031,0.200525,62139.0,62138.0,0.082526]
[1728470618032,0.34716058,62139.0,62138.0,0.082526]
[1728470621832,0.22716058,62139.0,62138.0,0.082526]
[1728470622831,0.17772669,62139.0,62138.0,0.082526]
[1728470623031,0.2271604,62139.0,62138.0,0.082526]
[1728470625131,0.080525,62139.0,62138.0,0.082526]
[1728470636147,0.080525,62139.0,62138.0,0.002]
[1728470636339,0.080525,62139.0,62138.0,0.05034713]
[1728470636540,0.190525,62139.0,62138.0,0.002]
[1728470637854,0.080525,62139.0,62138.0,0.002]
[1728470638446,0.200525,62139.0,62138.0,0.002]
[1728470640044,0.28940239,62139.0,62138.0,0.002]
[1728470640249,0.46565996,62139.0,62138.0,0.002]
[1728470640652,0.52342611,62139.0,62138.0,0.002]
[1728470640838,0.34716854,62139.0,62138.0,0.002]
[1728470641448,0.34716874,62139.0,62138.0,0.002]
[1728470642243,0.52335233,62139.0,62138.0,0.002]
[1728470642443,0.34716874,62139.0,62138.0,0.002]
[1728470645847,0.34716874,62139.0,62138.0,0.002]
[1728470647249,0.22716874,62139.0,62138.0,0.082526]
[1728470647648,0.25665079,62139.0,62138.0,0.082526]
[1728470647847,0.16940259,62139.0,62138.0,0.082526]
[1728470648050,0.080525,62139.0,62138.0,0.082526]
[1728470651053,0.3608,62141.0,62140.0,0.080523]
[1728470651259,0.3608,62141.0,62140.0,0.200523]
[1728470651448,0.441322,62141.0,62140.0,0.200523]
[1728470652454,0.442322,62141.0,62140.0,0.200523]
[1728470652762,0.444322,62141.0,62140.0,0.200523]
[1728470654656,1.154322,62141.0,62140.0,0.200523]
[1728470655056,1.3009561,62141.0,62140.0,0.200523]
[1728470655457,1.41930757,62141.0,62140.0,0.200523]
[1728470656566,1.24319367,62141.0,62140.0,0.200523]
[1728470658164,1.47707,62141.0,62140.0,0.200523]
[1728470660263,1.11627,62141.0,62140.0,0.200523]
[1728470661258,1.05850757,62141.0,62140.0,0.200523]
[1728470661654,0.88239367,62141.0,62140.0,0.200523]
[1728470663173,0.793522,62141.0,62140.0,0.32325242]
[1728470663859,0.713,62141.0,62140.0,0.32325242]
[1728470664064,0.003,62141.0,62140.0,0.32325242]
[1728470664964,0.083522,62141.0,62140.0,0.32325242]
[1728470666773,0.083522,62141.0,62140.0,0.32324913]
[1728470668066,0.003,62141.0,62140.0,0.32324913]
[1728470670173,0.003,62141.0,62140.0,0.24881212]
[1728470672472,0.003,62141.0,62140.0,0.200523]
[1728470673668,0.003,62141.0,62140.0,0.2649085]
[1728470673873,0.003,62141.0,62140.0,0.561323]
[1728470674985,0.016,62141.0,62140.0,0.562323]
[1728470675967,0.014,62141.0,62140.0,0.562323]
[1728470676167,0.028,62141.0,62140.0,0.563323]
[1728470678080,0.06743368,62141.0,62140.0,0.563323]
[1728470678377,0.11686113,62141.0,62140.0,0.563323]
[1728470680375,0.028,62141.0,62140.0,0.563323]
[1728470680678,0.11686112,62141.0,62140.0,0.563323]
[1728470682182,0.19738312,62141.0,62140.0,0.563323]
[1728470682382,0.29205966,62141.0,62140.0,0.563323]
[1728470682683,0.2609651,62141.0,62140.0,0.563323]
[1728470682881,0.2609651,62141.0,62140.0,0.202523]
[1728470683084,0.11686112,62141.0,62140.0,0.202523]
[1728470683383,0.17210475,62141.0,62140.0,0.202523]
[1728470683776,0.26096587,62141.0,62140.0,0.202523]
[1728470684487,0.11686112,62141.0,62140.0,0.202523]
[1728470685182,0.028,62141.0,62140.0,0.26691562]
[1728470686382,0.028,62141.0,62140.0,0.59657562]
[1728470688286,0.028,62141.0,62140.0,0.532183]
[1728470693084,0.11686434,62141.0,62140.0,0.532183]
[1728470698792,0.028,62141.0,62140.0,0.532183]
[1728470699105,0.11686434,62141.0,62140.0,0.532183]
[1728470700200,0.028,62141.0,62140.0,0.6548962]
[1728470701494,0.028,62141.0,62140.0,0.73542073]
[1728470702391,0.028,62141.0,62140.0,0.6548962]
[1728470703994,0.028,62141.0,62140.0,0.9499762]
[1728470707100,0.028,62141.0,62140.0,0.8299762]
[1728470707406,0.028,62141.0,62140.0,0.9499762]
[1728470708298,0.11685783,62141.0,62140.0,0.827263]
[1728470709099,0.18820209,62141.0,62140.0,0.827263]
[1728470709295,0.27705992,62141.0,62140.0,0.827263]
[1728470710507,0.11685783,62141.0,62140.0,0.827263]
[1728470711104,0.26102438,62141.0,62140.0,0.827263]
[1728470711901,0.11685783,62141.0,62140.0,0.827263]
[1728470712910,0.06743222,62141.0,62140.0,0.827263]
[1728470713208,0.06743222,62141.0,62140.0,1.188063]
[1728470715307,0.16020209,62148.0,62140.0,1.188063]
[1728470715308,0.16020209,62148.0,62147.0,0.080514]
[1728470715506,0.16020209,62148.0,62147.0,0.32322297]
[1728470717210,0.16020209,62148.0,62147.0,0.41980398]
[1728470717404,0.16020209,62148.0,62147.0,0.42380398]
[1728470717603,0.16020209,62148.0,62147.0,0.33222297]
[1728470718406,0.080507,62153.0,62151.0,0.080508]
[1728470718607,0.080507,62153.0,62152.0,0.20318798]
[1728470719616,0.080467,62153.0,62152.0,0.20318798]
[1728470720119,0.080467,62153.0,62152.0,0.28469598]
[1728470720615,0.080467,62153.0,62152.0,0.28469476]
[1728470723213,0.080467,62153.0,62152.0,0.081508]
[1728470723415,0.080467,62153.0,62152.0,0.10399464]
[1728470726522,0.4056,62154.0,62153.0,0.080506]
[1728470727817,0.4066,62154.0,62153.0,0.080506]
[1728470728012,0.4066,62154.0,62153.0,0.12880723]
[1728470728013,0.0458,62154.0,62153.0,0.12880723]
[1728470728213,0.001,62154.0,62153.0,0.080506]
[1728470728427,0.002,62154.0,62153.0,0.080506]
[1728470728721,0.002,62154.0,62153.0,0.20319013]
[1728470729220,0.0405,62164.0,62162.0,0.080495]
[1728470729422,0.0405,62164.0,62163.0,0.080494]
[1728470729718,0.0405,62164.0,62163.0,0.14482752]
[1728470730228,0.12932976,62164.0,62163.0,0.080494]
[1728470730408,0.08882976,62164.0,62163.0,0.080494]
[1728470731116,0.09082976,62164.0,62163.0,0.096494]
[1728470731517,0.002,62164.0,62163.0,1.20172054]
[1728470731914,0.04141976,62164.0,62163.0,1.20172054]
[1728470732622,0.04141976,62164.0,62163.0,1.56252054]
[1728470733611,0.04141976,62164.0,62163.0,0.96252054]
[1728470734426,0.00196,62164.0,62163.0,0.96252054]
[1728470734723,0.0037,62172.0,62163.0,0.88202654]
[1728470735026,0.1298,62174.0,62173.0,0.080481]
[1728470735325,0.21861515,62174.0,62173.0,0.080481]
[1728470735524,0.16921328,62174.0,62173.0,0.080481]
[1728470736720,0.17121328,62174.0,62173.0,0.080481]
[1728470737116,0.17321328,62174.0,62173.0,0.080481]
[1728470738023,0.22261691,62174.0,62173.0,0.080481]
[1728470738231,0.1338,62174.0,62173.0,0.080481]
[1728470741323,0.004,62174.0,62173.0,0.080481]
[1728470742825,0.1824,62174.0,62173.0,0.10360217]
[1728470743219,0.1864,62174.0,62173.0,0.10460217]
[1728470744033,0.00671291,62186.0,62182.0,0.080469]
[1728470744219,0.00241291,62186.0,62185.0,0.080465]